bitfinex-derivatives/quotes_BNBF0:USTF0_20250221
["timestamp","ask_amount","ask_price","bid_price","bid_amount"]
[1740121969507,1.48937148,654.94,653.92,2.13475631]
[1740121969707,1.48937148,654.94,653.93,2.13475631]
[1740121969908,1.48937148,654.94,653.94,2.13475631]
[1740121970107,1.48937148,654.94,653.95,2.13475631]
[1740121970303,1.48937148,654.94,653.96,2.13475631]
[1740121970503,1.48937148,654.94,653.97,2.13475631]
[1740121970803,1.48937148,654.94,653.98,2.13475631]
[1740121971008,1.48937148,654.94,653.99,2.13475631]
[1740121971208,1.48937148,654.94,654.0,2.13475631]
[1740121971407,1.48937148,654.94,654.01,2.13475631]
[1740121971708,1.48937148,654.94,654.02,2.13475631]
[1740121971902,1.48937148,654.94,654.03,2.13475631]
[1740121972102,1.48937148,654.94,654.04,2.13475631]
[1740121972303,1.48937148,654.94,654.05,2.13475631]
[1740121972503,1.48937148,654.94,654.06,2.13475631]
[1740121972703,1.48937148,654.94,654.07,2.13475631]
[1740121972907,1.48937148,654.94,654.08,2.13475631]
[1740121973108,1.48937148,654.94,654.09,2.13475631]
[1740121973307,1.48937148,654.94,654.1,2.13475631]
[1740121973511,1.48937148,654.94,654.11,2.13475631]
[1740121973712,1.48937148,654.94,654.12,2.13475631]
[1740121974011,1.48937148,654.94,654.13,2.13475631]
[1740121974206,1.48937148,654.94,654.14,2.13475631]
[1740121974410,1.48937148,654.94,654.15,2.13475631]
[1740121974611,1.48937148,654.94,654.16,2.13475631]
[1740121974809,1.48937148,654.94,654.17,2.13475631]
[1740121975011,1.48937148,654.94,654.18,2.13475631]
[1740121975205,1.48937148,654.94,654.19,2.13475631]
[1740121975410,1.48937148,654.94,654.2,2.13475631]
[1740121975614,1.48937148,654.94,654.21,2.13475631]
[1740121975811,1.48937148,654.94,654.22,2.13475631]
[1740121976012,1.48937148,654.94,654.23,5.10023186]
[1740121976213,1.48937148,654.94,654.24,2.13475631]
[1740121976412,1.48937148,654.94,654.23,2.96547555]
[1740121976616,1.48937148,654.94,654.24,2.13647641]
[1740121976814,0.30537148,654.94,654.23,2.96547555]
[1740121977015,0.30537148,654.94,654.24,2.13646972]
[1740121977319,0.30537148,654.94,654.25,2.13658951]
[1740121977519,0.30537148,654.94,653.99,1.13987848]
[1740121977817,0.30537148,654.94,654.0,5.10458841]
[1740121978017,0.30537148,654.94,654.01,2.13659157]
[1740121978218,0.30537148,654.94,654.02,2.13659157]
[1740121978417,0.30537148,654.94,654.03,2.13659157]
[1740121978618,0.30537148,654.94,654.04,2.13659157]
[1740121978818,0.30537148,654.94,654.05,2.13659157]
[1740121979020,0.30537148,654.94,654.06,2.13659157]
[1740121979211,0.30537148,654.94,654.07,2.13659157]
[1740121979412,0.30537148,654.94,654.08,2.13659157]
[1740121979614,0.30537148,654.94,654.09,2.13659157]
[1740121979818,0.30537148,654.94,654.04,2.96799684]
[1740121979819,0.30537148,654.94,654.1,2.13659157]
[1740121980119,0.30537148,654.94,654.11,2.13659157]
[1740121980320,0.30537148,654.94,654.12,2.13659157]
[1740121980519,0.30537148,654.94,654.13,2.13659157]
[1740121980720,0.30537148,654.94,654.14,2.13659157]
[1740121980920,0.30537148,654.94,654.15,2.13659157]
[1740121981113,0.30537148,654.94,654.16,2.13659157]
[1740121981316,0.30537148,654.94,654.17,2.13659157]
[1740121981516,0.30537148,654.94,654.18,2.13659157]
[1740121981720,0.30537148,654.94,654.19,2.13659157]
[1740121982021,0.30537148,654.94,654.2,2.13659157]
[1740121982215,0.30537148,654.94,654.21,2.13659157]
[1740121982419,0.30537148,654.94,654.22,2.13659157]
[1740121982613,0.30537148,654.94,654.23,2.13659157]
[1740121982813,0.30537148,654.94,654.2,2.96799684]
[1740121983014,0.30537148,654.94,654.21,2.13710907]
[1740121983219,0.30537148,654.94,654.22,2.13710907]
[1740121983420,0.30537148,654.94,654.23,2.13710907]
[1740121983721,0.30537148,654.94,654.2,2.96799684]
[1740121984021,0.30537148,654.94,653.99,1.13987848]
[1740121984319,0.30537148,654.94,654.0,2.13699818]
[1740121984512,0.30537148,654.94,654.01,5.10555014]
[1740121984717,0.30537148,654.94,654.02,2.13699818]
[1740121984918,0.30537148,654.94,654.03,2.13699818]
[1740121985119,0.30537148,654.94,654.04,2.13699818]
[1740121985321,0.30537148,654.94,654.05,5.10555014]
[1740121985620,0.30537148,654.94,654.06,2.13699818]
[1740121985820,0.30537148,654.94,654.05,2.96855196]
[1740121985821,0.30537148,654.94,654.07,2.13699818]
[1740121986120,0.30537148,654.94,654.08,2.13699818]
[1740121986320,0.30537148,654.94,654.09,2.13699818]
[1740121986521,0.30537148,654.94,654.1,2.13699818]
[1740121986721,0.30537148,654.94,654.11,2.13699818]
[1740121986921,0.30537148,654.94,654.12,2.13699818]
[1740121987118,0.30537148,654.94,654.13,2.13699818]
[1740121987422,0.30537148,654.94,654.14,2.13699818]
[1740121987622,0.30537148,654.94,654.15,2.13699818]
[1740121987817,0.30537148,654.94,654.16,2.13699818]
[1740121988015,0.30537148,654.94,654.17,2.13699818]
[1740121988217,0.30537148,654.94,654.18,2.13699818]
[1740121988523,0.30537148,654.94,654.19,5.10555014]
[1740121988724,0.30537148,654.94,654.2,2.13699818]
[1740121989023,0.30537148,654.94,654.19,2.96855196]
[1740121989819,0.30537148,654.94,653.98,1.13987848]
[1740121991719,0.30537148,654.94,653.85,1.13987848]
[1740121992223,0.30537148,654.94,653.86,2.96979205]
[1740121993528,0.30537148,654.94,653.87,2.13866473]
[1740121993823,0.30537148,654.94,653.86,2.96979205]
[1740121994026,0.30537148,654.94,653.87,2.13868188]
[1740121994326,0.30537148,654.94,653.81,1.13987848]
[1740121994524,0.30537148,654.94,653.88,2.97157209]
[1740121996126,0.30537148,654.94,653.81,1.13987848]
[1740121996321,0.30537148,654.94,653.82,2.13960909]
[1740121996528,0.30537148,654.94,653.83,5.11211328]
[1740121996829,0.30537148,654.94,653.84,2.13960909]
[1740121997026,0.30537148,654.94,653.85,2.13960909]
[1740121997239,0.30537148,654.94,653.86,2.13960909]
[1740121997426,0.30537148,654.94,653.87,2.13960909]
[1740121997726,0.30537148,654.94,653.88,2.13960909]
[1740121997926,0.30537148,654.94,653.89,2.13960909]
[1740121998125,0.30537148,654.94,653.9,2.13960909]
[1740121998320,0.30537148,654.94,653.91,2.13960909]
[1740121998524,0.30537148,654.94,653.92,2.13960909]
[1740121998726,0.30537148,654.94,653.93,2.13960909]
[1740121998926,0.30537148,654.94,653.94,2.13960909]
[1740121999128,0.30537148,654.94,653.95,2.13960909]
[1740121999329,0.30537148,654.94,653.96,2.13960909]
[1740121999529,0.30537148,654.94,653.97,2.13960909]
[1740121999729,0.30537148,654.94,653.98,2.13960909]
[1740121999925,0.30537148,654.94,653.96,2.97250419]
[1740122000732,0.30537148,654.94,653.88,1.13987848]
[1740122001324,0.30537148,654.94,653.89,2.97376107]
[1740122002832,0.30537148,654.94,653.81,1.13987848]
[1740122003135,0.30537148,654.94,653.82,5.11422961]
[1740122003328,0.30537148,654.94,653.82,2.97360104]
[1740122004532,0.30537148,654.94,653.81,1.13987848]
[1740122005337,0.30537148,654.94,653.77,1.13987848]
[1740122005630,0.30537148,654.94,653.78,2.97399595]
[1740122006038,0.30537148,654.94,653.79,2.14095652]
[1740122006238,0.30537148,654.94,653.78,2.97399595]
[1740122006538,0.30537148,654.94,653.79,2.14099858]
[1740122006737,0.30537148,654.94,653.78,2.97399595]
[1740122006936,0.30537148,654.94,653.79,2.14096988]
[1740122007137,0.30537148,654.94,653.78,2.97399595]
[1740122007339,0.30537148,654.94,653.79,2.14097]
[1740122007536,0.30537148,654.94,653.78,2.97399595]
[1740122007537,0.30537148,654.94,653.8,2.14097]
[1740122007736,0.30537148,654.94,653.81,2.14097]
[1740122007932,0.30537148,654.94,653.82,2.14097]
[1740122008236,0.30537148,654.94,653.83,2.14097]
[1740122008436,0.30537148,654.94,653.84,2.14097]
[1740122008633,0.30537148,654.94,653.85,2.14097]
[1740122008838,0.30537148,654.94,653.86,2.14097]
[1740122009038,0.30537148,654.94,653.87,2.14097]
[1740122009234,0.30537148,654.94,653.88,2.14097]
[1740122009434,0.30537148,654.94,653.89,2.14097]
[1740122009637,0.30537148,654.94,653.9,2.14097]
[1740122009938,0.30537148,654.94,653.91,2.14097]
[1740122010133,0.30537148,654.94,653.92,2.14097]
[1740122010335,0.30537148,654.94,653.93,2.14097]
[1740122010534,0.30537148,654.94,653.94,2.14097]
[1740122010737,0.30537148,654.94,653.95,2.14097]
[1740122010939,0.30537148,654.94,653.96,2.14097]
[1740122011134,0.30537148,654.94,653.97,2.14097]
[1740122011340,0.30537148,654.94,653.98,2.14097]
[1740122011535,0.30537148,654.94,653.99,2.14097]
[1740122011740,0.30537148,654.94,654.0,2.14097]
[1740122011934,0.30537148,654.94,654.01,2.14097]
[1740122012139,0.30537148,654.94,654.02,5.11496595]
[1740122012341,0.30537148,654.94,654.03,2.14097]
[1740122012540,0.30537148,654.94,654.04,2.14097]
[1740122012736,0.30537148,654.94,654.05,2.14097]
[1740122012941,0.30537148,654.94,654.06,2.14097]
[1740122013142,0.30537148,654.94,654.07,2.14097]
[1740122013342,0.30537148,654.94,654.08,2.14097]
[1740122013543,0.30537148,654.94,654.09,2.14097]
[1740122013739,0.30537148,654.94,654.1,2.14097]
[1740122014039,0.30537148,654.94,654.11,2.14097]
[1740122014240,0.30537148,654.94,654.12,2.14097]
[1740122014438,0.30537148,654.94,654.13,2.14097]
[1740122014639,0.30537148,654.94,654.14,2.14097]
[1740122014840,0.30537148,654.94,654.15,2.14097]
[1740122015040,0.30537148,654.94,654.16,2.14097]
[1740122015243,0.30537148,654.94,654.17,2.14097]
[1740122015440,0.30537148,654.94,654.18,2.14097]
[1740122015645,0.30537148,654.94,654.19,2.14097]
[1740122015841,0.30537148,654.94,654.2,2.14097]
[1740122016046,0.30537148,654.94,654.21,2.14097]
[1740122016243,0.30537148,654.94,654.22,2.14097]
[1740122016447,0.30537148,654.94,654.23,5.11496595]
[1740122016642,0.30537148,654.94,654.24,2.14097]
[1740122016847,0.30537148,654.94,654.25,2.14097]
[1740122017152,0.30537148,654.94,654.26,2.14097]
[1740122017348,0.30537148,654.94,654.27,2.14097]
[1740122017548,0.30537148,654.94,654.28,2.14097]
[1740122017750,0.30537148,654.94,654.29,5.11496595]
[1740122018050,0.30537148,654.94,654.3,2.14097]
[1740122018242,0.30537148,654.94,654.29,2.97399595]
[1740122018447,0.30537148,654.94,654.3,2.14092418]
[1740122018643,0.30537148,654.94,654.29,2.97399595]
[1740122018847,0.30537148,654.94,654.3,2.14094139]
[1740122019044,0.30537148,654.94,653.97,1.13987848]
[1740122019350,0.30537148,654.94,653.98,5.11522201]
[1740122019551,0.30537148,654.94,653.99,2.14111373]
[1740122019751,0.30537148,654.94,654.0,2.14111373]
[1740122020051,0.30537148,654.94,654.01,2.14111373]
[1740122020251,0.30537148,654.94,653.98,2.97410828]
[1740122020448,0.30537148,654.94,653.99,2.14150307]
[1740122020647,0.30537148,654.94,654.0,2.14150307]
[1740122020845,0.30537148,654.94,654.01,2.14150307]
[1740122021046,0.30537148,654.94,653.95,1.13987848]
[1740122021047,0.30537148,654.94,654.02,2.14157971]
[1740122021247,0.30537148,654.94,654.0,2.97410828]
[1740122021547,0.30537148,654.94,654.01,2.14153354]
[1740122021746,0.30537148,654.94,654.02,2.14153354]
[1740122021948,0.30537148,654.94,654.0,2.97410828]
[1740122022154,0.30537148,654.94,654.01,2.14158685]
[1740122022349,0.30537148,654.94,654.02,2.14158685]
[1740122022553,0.30537148,654.94,654.0,2.97410828]
[1740122022753,0.30537148,654.94,654.01,2.14164073]
[1740122022951,0.30537148,654.94,653.95,1.13987848]
[1740122023154,0.30537148,654.94,653.96,5.11655228]
[1740122023351,0.30537148,654.94,653.97,2.14159888]
[1740122023549,0.30537148,654.94,653.98,2.14159888]
[1740122023755,0.30537148,654.94,653.99,2.14159888]
[1740122023956,0.30537148,654.94,654.0,2.14159888]
[1740122024150,0.30537148,654.94,653.96,2.9749534]
[1740122024351,0.30537148,654.94,653.97,2.14147816]
[1740122024555,0.30537148,654.94,653.98,2.14147816]
[1740122024856,0.30537148,654.94,653.99,2.14147816]
[1740122025057,0.30537148,654.94,654.0,2.14147816]
[1740122025357,0.30537148,654.94,653.98,2.9749534]
[1740122025556,0.30537148,654.94,653.99,2.14146645]
[1740122025758,0.30537148,654.94,654.0,2.14146645]
[1740122025958,0.30537148,654.94,653.81,1.13987848]
[1740122026158,0.30537148,654.94,653.82,2.14142473]
[1740122026458,0.30537148,654.94,653.83,2.14142473]
[1740122026651,0.30537148,654.94,653.84,2.14142473]
[1740122026855,0.30537148,654.94,653.85,2.14142473]
[1740122027052,0.30537148,654.94,653.86,2.14142473]
[1740122027255,0.30537148,654.94,653.87,2.14142473]
[1740122027456,0.30537148,654.94,653.88,2.14142473]
[1740122027656,0.30537148,654.94,653.89,2.14142473]
[1740122027856,0.30537148,654.94,653.9,2.14142473]
[1740122028056,0.30537148,654.94,653.91,2.14142473]
[1740122028257,0.30537148,654.94,653.92,2.14142473]
[1740122028456,0.30537148,654.94,653.93,2.14142473]
[1740122028654,0.30537148,654.94,653.91,2.97456517]
[1740122028655,0.30537148,654.94,653.94,2.14142473]
[1740122028855,0.30537148,654.94,653.95,2.14142473]
[1740122029054,0.30537148,654.94,653.96,2.14142473]
[1740122029257,0.30537148,654.94,653.97,2.14142473]
[1740122029454,0.30537148,654.94,653.98,2.14142473]
[1740122029658,0.30537148,654.94,653.99,2.14142473]
[1740122029858,0.30537148,654.94,654.0,2.14142473]
[1740122030059,0.30537148,654.94,654.01,2.14142473]
[1740122030260,0.30537148,654.94,654.02,2.14142473]
[1740122030560,0.30537148,654.94,654.03,5.1159899]
[1740122030761,0.30537148,654.94,654.04,2.14142473]
[1740122030963,0.30537148,654.94,654.03,2.97456517]
[1740122030964,1.89637148,654.94,654.05,2.14142473]
[1740122031260,1.89637148,654.94,654.06,2.14142473]
[1740122031461,1.89637148,654.94,654.07,2.14142473]
[1740122031662,1.89637148,654.94,654.08,2.14142473]
[1740122031862,1.89637148,654.94,654.09,2.14142473]
[1740122032062,1.89637148,654.94,654.1,5.1159899]
[1740122032255,1.89637148,654.94,654.11,2.14142473]
[1740122032457,1.89637148,654.94,654.12,2.14142473]
[1740122032761,1.89637148,654.94,654.13,2.14142473]
[1740122032962,1.89637148,654.94,654.14,2.14142473]
[1740122033163,1.89637148,654.94,654.15,5.1159899]
[1740122033363,1.89637148,654.94,654.16,2.14142473]
[1740122033657,1.89637148,654.94,654.17,2.14142473]
[1740122033862,1.89637148,654.94,654.18,2.14142473]
[1740122034063,1.89637148,654.94,654.19,2.14142473]
[1740122034362,1.89637148,654.94,654.2,2.14142473]
[1740122034662,1.89637148,654.94,654.21,2.14142473]
[1740122034862,1.89637148,654.94,654.22,2.14142473]
[1740122035061,1.89637148,654.94,654.23,2.14142473]
[1740122035261,1.89637148,654.94,654.24,2.14142473]
[1740122035557,1.89637148,654.94,654.25,2.14142473]
[1740122035761,1.89637148,654.94,654.26,2.14142473]
[1740122035957,1.89637148,654.94,654.21,2.97456517]
[1740122036156,1.89637148,654.94,654.22,2.14124939]
[1740122036361,1.89637148,654.94,654.23,5.11581456]
[1740122036558,1.89637148,654.94,654.24,2.14124939]
[1740122036758,1.89637148,654.94,654.25,2.14124939]
[1740122036959,1.89637148,654.94,654.26,2.14124939]
[1740122037161,1.89637148,654.94,654.27,2.14124939]
[1740122037366,1.89637148,654.94,654.23,2.97456517]
[1740122037558,1.89637148,654.94,654.24,2.14121402]
[1740122037762,1.89637148,654.94,654.25,2.14121402]
[1740122037963,1.89637148,654.94,654.26,5.11577919]
[1740122038161,1.89637148,654.94,654.27,2.14121402]
[1740122038361,1.89637148,654.94,654.26,2.97456517]
[1740122038558,1.89637148,654.94,654.27,2.14109784]
[1740122038758,1.89637148,654.94,654.26,2.97456517]
[1740122038963,1.89637148,654.94,654.27,2.14109067]
[1740122039262,1.89637148,654.94,654.26,2.97456517]
[1740122039661,1.89637148,654.94,653.96,1.13987848]
[1740122042969,1.89637148,654.94,653.39,1.13987848]
[1740122047075,1.89637148,654.94,653.26,1.13987848]
[1740122050880,1.89637148,654.94,652.26,2.3430952]
[1740122050881,1.89637148,654.94,653.22,1.13987848]
[1740122051278,1.89637148,654.94,653.23,5.106391]
[1740122051479,1.89637148,654.94,653.24,2.13750778]
[1740122051680,1.89637148,654.94,653.25,2.13750778]
[1740122051883,1.89637148,654.94,653.26,2.13750778]
[1740122052073,1.89637148,654.94,653.27,2.13750778]
[1740122052277,1.89637148,654.94,653.28,2.13750778]
[1740122052472,1.89637148,654.94,653.29,2.13750778]
[1740122052677,1.89637148,654.94,653.3,2.13750778]
[1740122052879,1.89637148,654.94,653.3,2.96888322]
[1740122053579,1.89637148,654.94,653.22,1.13987848]
[1740122054683,1.89637148,654.94,653.41,1.13987848]
[1740122056584,1.89637148,654.94,653.07,1.13987848]
[1740122056786,1.89637148,654.94,653.08,2.13565032]
[1740122056979,1.89637148,654.94,653.18,1.13987848]
[1740122057183,1.89637148,654.94,653.19,2.13565032]
[1740122057383,1.89637148,654.94,653.2,2.13565032]
[1740122057583,1.89637148,654.94,653.18,1.13987848]
[1740122059285,1.89637148,654.94,653.17,1.13987848]
[1740122062590,1.89637148,654.94,653.28,1.13987848]
[1740122063290,1.89637148,654.94,652.93,0.88052971]
[1740122063493,1.89637148,654.94,653.29,2.13295205]
[1740122063688,1.89637148,654.94,652.94,0.30630685]
[1740122064089,1.89637148,654.94,653.29,2.96246859]
[1740122064490,1.89637148,654.94,652.94,0.30630685]
[1740122065495,1.89637148,654.94,653.17,1.1362488]
[1740122066487,1.89637148,654.94,652.94,0.30630685]
[1740122068394,1.89637148,654.94,653.23,1.13677328]
[1740122069294,1.89637148,654.94,652.94,0.30630685]
[1740122071197,1.89637148,654.94,653.29,1.13773935]
[1740122072698,1.89637148,654.94,653.37,1.13773935]
[1740122075500,1.89637148,654.94,653.49,1.13773935]
[1740122079199,1.89637148,654.94,653.55,1.13773935]
[1740122081004,1.89637148,654.94,653.45,1.13773935]
[1740122081304,1.89637148,654.94,653.46,0.30606311]
[1740122084108,1.89637148,654.94,653.64,1.13773935]
[1740122086907,1.89637148,654.94,653.53,1.13773935]
[1740122089509,1.89637148,654.94,653.55,1.13773935]
[1740122094813,1.89637148,654.94,653.54,1.13773935]
[1740122097714,1.89637148,654.94,653.55,1.13773935]
[1740122100912,1.89637148,654.94,653.46,0.30606311]
[1740122109415,1.89637148,654.94,653.61,1.13577457]
[1740122112617,1.89637148,654.94,653.52,1.13577457]
[1740122115724,1.89637148,654.94,653.62,1.13577457]
[1740122118530,1.89637148,654.94,653.64,1.13577457]
[1740122124334,1.89637148,654.94,653.62,1.13577457]
[1740122125235,1.89637148,654.94,653.63,2.13301366]
[1740122125433,1.89637148,654.94,653.62,1.13577457]
[1740122125734,1.89637148,654.94,653.63,2.96271387]
[1740122125933,1.89637148,654.94,653.62,1.13577457]
[1740122126129,1.89637148,654.94,653.64,2.13412301]
[1740122126334,1.89637148,654.94,653.65,2.13412301]
[1740122126536,1.89637148,654.94,653.66,2.13412301]
[1740122126727,1.89637148,654.94,653.67,2.13412301]
[1740122126931,1.89637148,654.94,653.68,2.13412301]
[1740122127129,1.89637148,654.94,653.69,2.13412301]
[1740122127333,1.89637148,654.94,653.7,2.13412301]
[1740122127533,1.89637148,654.94,653.71,2.13412301]
[1740122127734,1.89637148,654.94,653.72,2.13412301]
[1740122127931,1.89637148,654.94,653.73,5.09847521]
[1740122128129,1.89637148,654.94,653.74,2.13412301]
[1740122128333,1.89637148,654.94,653.75,2.13412301]
[1740122128533,1.89637148,654.94,653.76,2.13412301]
[1740122128731,1.89637148,654.94,653.77,2.13412301]
[1740122129030,1.89637148,654.94,653.78,5.09847521]
[1740122129234,1.89637148,654.94,653.79,2.13412301]
[1740122129430,1.89637148,654.94,653.8,2.13412301]
[1740122129633,1.89637148,654.94,653.81,2.13412301]
[1740122129833,1.89637148,654.94,653.82,2.13412301]
[1740122130130,1.89637148,654.94,653.83,2.13412301]
[1740122130432,1.89637148,654.94,653.78,2.9643522]
[1740122130735,1.89637148,654.94,653.66,1.13577457]
[1740122131136,1.89637148,654.94,653.67,2.13759281]
[1740122131329,1.89637148,654.94,653.68,2.13759281]
[1740122131533,1.89637148,654.94,653.69,2.13759281]
[1740122131730,1.89637148,654.94,653.7,2.13759281]
[1740122131933,1.89637148,654.94,653.71,2.13759281]
[1740122132134,1.89637148,654.94,653.72,2.13759281]
[1740122132335,1.89637148,654.94,653.73,2.13759281]
[1740122132535,1.89637148,654.94,653.74,2.13759281]
[1740122132736,1.89637148,654.94,653.75,2.13759281]
[1740122132932,1.89637148,654.94,653.76,2.13759281]
[1740122133139,1.89637148,654.94,653.77,2.13759281]
[1740122133337,1.89637148,654.94,653.78,2.13759281]
[1740122133538,1.89637148,654.94,653.79,2.13759281]
[1740122133735,1.89637148,654.94,653.8,2.13759281]
[1740122133933,1.89637148,654.94,653.81,2.13759281]
[1740122134131,1.89637148,654.94,653.82,2.13759281]
[1740122134332,1.89637148,654.94,653.83,2.13759281]
[1740122134639,1.89637148,654.94,653.84,5.10668408]
[1740122134938,1.89637148,654.94,653.85,2.13759281]
[1740122135238,1.89637148,654.94,653.86,2.13759281]
[1740122135537,1.89637148,654.94,653.87,2.13759281]
[1740122135738,1.89637148,654.94,653.84,2.96909127]
[1740122135939,1.89637148,654.94,653.65,1.13577457]
[1740122136443,1.89637148,654.94,653.66,2.14136399]
[1740122136638,1.89637148,654.94,653.67,2.14136399]
[1740122136939,1.89637148,654.94,653.68,2.14136399]
[1740122137239,1.89637148,654.94,653.69,2.14136399]
[1740122137438,1.89637148,654.94,653.7,2.14136399]
[1740122137637,1.89637148,654.94,653.71,2.14136399]
[1740122137835,1.89637148,654.94,653.72,2.14136399]
[1740122138141,1.89637148,654.94,653.73,5.11569335]
[1740122138341,1.89637148,654.94,653.74,2.14136399]
[1740122138539,1.89637148,654.94,653.75,2.14136399]
[1740122138740,1.89637148,654.94,653.76,2.14136399]
[1740122138938,1.89637148,654.94,653.77,2.14136399]
[1740122139138,1.89637148,654.94,653.78,2.14136399]
[1740122139339,1.89637148,654.94,653.79,2.14136399]
[1740122139639,1.89637148,654.94,653.8,2.14136399]
[1740122139841,1.89637148,654.94,653.81,2.14136399]
[1740122140139,1.89637148,654.94,653.82,2.14136399]
[1740122140341,1.89637148,654.94,653.83,2.14136399]
[1740122140541,1.89637148,654.94,653.84,2.14136399]
[1740122140742,1.89637148,654.94,653.85,2.14136399]
[1740122141041,1.89637148,654.94,653.8,2.97432936]
[1740122141242,1.89637148,654.94,653.67,1.13577457]
[1740122141642,1.89637148,654.94,653.68,2.14191974]
[1740122141943,1.89637148,654.94,653.69,2.14191974]
[1740122142145,1.89637148,654.94,653.7,2.14191974]
[1740122142443,1.89637148,654.94,653.68,2.97510246]
[1740122142444,1.89637148,654.94,653.71,2.14191974]
[1740122142643,1.89637148,654.94,653.72,2.14191974]
[1740122142842,1.89637148,654.94,653.73,2.14191974]
[1740122143045,1.89637148,654.94,653.74,2.14191974]
[1740122143239,1.89637148,654.94,653.75,2.14191974]
[1740122143442,1.89637148,654.94,653.76,2.14191974]
[1740122143641,1.89637148,654.94,653.77,2.14191974]
[1740122143844,1.89637148,654.94,653.78,2.14191974]
[1740122144144,1.89637148,654.94,653.79,2.14191974]
[1740122144345,1.89637148,654.94,653.8,2.14191974]
[1740122144544,1.89637148,654.94,653.81,5.1170222]
[1740122144745,1.89637148,654.94,653.82,2.14191974]
[1740122145045,1.89637148,654.94,653.83,2.14191974]
[1740122145245,1.89637148,654.94,653.84,2.14191974]
[1740122145441,1.89637148,654.94,653.85,2.14191974]
[1740122145650,1.89637148,654.94,653.86,2.14191974]
[1740122145846,1.89637148,654.94,653.87,2.14191974]
[1740122146046,1.89637148,654.94,653.88,2.14191974]
[1740122146251,1.89637148,654.94,653.89,5.1170222]
[1740122146553,1.89637148,654.94,653.9,2.14191974]
[1740122146747,1.89637148,654.94,653.91,2.14191974]
[1740122147052,1.89637148,654.94,653.92,2.14191974]
[1740122147253,1.89637148,654.94,653.89,2.97510246]
[1740122147451,1.89637148,654.94,653.72,1.14023109]
[1740122148051,1.89637148,654.94,653.73,2.14297265]
[1740122148250,1.89637148,654.94,653.74,2.14297265]
[1740122148452,1.89637148,654.94,653.75,2.14297265]
[1740122148753,1.89637148,654.94,653.76,2.14297265]
[1740122148953,1.89637148,654.94,653.77,2.14297265]
[1740122149154,1.89637148,654.94,653.78,2.14297265]
[1740122149352,1.89637148,654.94,653.79,2.14297265]
[1740122149558,1.89637148,654.94,653.8,2.14297265]
[1740122149855,1.89637148,654.94,653.81,2.14297265]
[1740122150055,1.89637148,654.94,653.82,2.14297265]
[1740122150248,1.89637148,654.94,653.83,2.14297265]
[1740122150452,1.89637148,654.94,653.84,2.14297265]
[1740122150652,1.89637148,654.94,653.85,2.14297265]
[1740122150952,1.89637148,654.94,653.86,2.14297265]
[1740122151153,1.89637148,654.94,653.87,5.11957344]
[1740122151354,1.89637148,654.94,653.88,2.14297265]
[1740122151549,1.89637148,654.94,653.89,2.14297265]
[1740122151752,1.89637148,654.94,653.87,2.97660079]
[1740122151952,1.89637148,654.94,653.88,2.14279384]
[1740122152153,1.89637148,654.94,653.89,2.14279384]
[1740122152354,1.89637148,654.94,653.9,2.14276287]
[1740122152552,1.89637148,654.94,653.89,2.97660079]
[1740122152956,1.89637148,654.94,653.7,1.14023109]
[1740122153150,1.89637148,654.94,653.71,2.14276731]
[1740122153558,1.89637148,654.94,653.72,2.14276731]
[1740122153759,1.89637148,654.94,653.73,2.14276731]
[1740122153963,1.89637148,654.94,653.74,2.14276731]
[1740122154259,1.89637148,654.94,653.75,2.14276731]
[1740122154456,1.89637148,654.94,653.76,2.14276731]
[1740122154655,1.89637148,654.94,653.77,2.14276731]
[1740122154856,1.89637148,654.94,653.78,2.14276731]
[1740122155059,1.89637148,654.94,653.79,2.14276731]
[1740122155260,1.89637148,654.94,653.71,4.11657507]
[1740122155559,1.89637148,654.94,653.71,1.14023109]
[1740122156662,1.89637148,654.94,653.74,1.14023109]
[1740122159562,1.89637148,654.94,653.56,1.14023109]
[1740122161763,1.89637148,654.94,653.51,1.14023109]
[1740122164364,1.89637148,654.94,653.52,2.1399256]
[1740122164564,1.89637148,654.94,653.53,2.1399256]
[1740122164961,1.89637148,654.94,653.52,2.97239387]
[1740122165359,1.89637148,654.94,653.49,1.14023109]
[1740122165667,1.89637148,654.94,653.5,5.1132752]
[1740122165867,1.89637148,654.94,653.51,2.14031028]
[1740122166062,1.89637148,654.94,653.52,2.14031028]
[1740122166267,1.89637148,654.94,653.53,2.14031028]
[1740122166468,1.89637148,654.94,653.54,2.14031028]
[1740122166664,1.89637148,654.94,653.55,2.14031028]
[1740122166860,1.89637148,654.94,653.56,2.14031028]
[1740122167066,1.89637148,654.94,653.57,5.1132752]
[1740122167360,1.89637148,654.94,653.58,2.14031028]
[1740122167561,1.89637148,654.94,653.59,2.14031028]
[1740122167768,1.89637148,654.94,653.68,1.14023109]
[1740122167969,1.89637148,654.94,653.69,2.14031028]
[1740122168168,1.89637148,654.94,653.7,2.14031028]
[1740122168362,1.89637148,654.94,653.71,2.14031028]
[1740122168565,1.89637148,654.94,653.72,2.14031028]
[1740122168764,1.89637148,654.94,653.73,2.14031028]
[1740122168962,1.89637148,654.94,653.74,2.14031028]
[1740122169264,1.89637148,654.94,653.75,2.14031028]
[1740122169462,1.89637148,654.94,653.76,2.14031028]
[1740122169668,1.89637148,654.94,653.77,2.14031028]
[1740122169867,1.89637148,654.94,653.78,2.14031028]